[Event "Titled Tuesday Blitz August 3 2021"]
[White "Ivanchuk, Vasyl"]
[Black "Ballester Llagaria, Luis Eduardo"]
[WhiteFideId "14100010"]
[BlackFideId "2297620"]
[WhiteElo "2710"]
[BlackElo "2344"]
[Result "1-0"]
[Round "06"]
[TimeControl "180+1"]
[Date "2021.08.03"]
[WhiteClock "0:00:46"]
[BlackClock "0:00:09"]

1. e4 {[%clk 0:03:00]}  e6 {[%clk 0:02:59]} 2. d4 {[%clk 0:03:00]}  d5 {[%clk 0:03:00]} 3. Nc3 {[%clk 0:03:00]}  Nc6 {[%clk 0:03:00]} 4. e5 {[%clk 0:02:59]}  f6 {[%clk 0:02:58]} 5. f4 {[%clk 0:02:55]}  fxe5 {[%clk 0:02:58]} 6. dxe5 {[%clk 0:02:55]}  Bc5 {[%clk 0:02:58]} 7. Nf3 {[%clk 0:02:51]}  Nh6 {[%clk 0:02:57]} 8. Bd3 {[%clk 0:02:43]}  O-O {[%clk 0:02:35]} 9. Ng5 {[%clk 0:02:34]}  g6 {[%clk 0:02:13]} 10. h4 {[%clk 0:02:34]}  Nb4 {[%clk 0:01:33]} 11. h5 {[%clk 0:02:31]}  Nf5 {[%clk 0:01:18]} 12. hxg6 {[%clk 0:02:21]}  hxg6 {[%clk 0:00:58]} 13. Qg4 {[%clk 0:02:17]}  Nxd3+ {[%clk 0:00:48]} 14. cxd3 {[%clk 0:02:16]}  Qe7 {[%clk 0:00:35]} 15. Rh7 {[%clk 0:02:11]}  Qxh7 {[%clk 0:00:35]} 16. Nxh7 {[%clk 0:02:11]}  Kxh7 {[%clk 0:00:36]} 17. Bd2 {[%clk 0:02:09]}  Bd7 {[%clk 0:00:28]} 18. O-O-O {[%clk 0:02:07]}  Kg7 {[%clk 0:00:28]} 19. Ne2 {[%clk 0:01:58]}  a5 {[%clk 0:00:23]} 20. Kb1 {[%clk 0:01:44]}  a4 {[%clk 0:00:23]} 21. Ng3 {[%clk 0:01:43]}  Nxg3 {[%clk 0:00:19]} 22. Qxg3 {[%clk 0:01:43]}  a3 {[%clk 0:00:20]} 23. b3 {[%clk 0:01:35]}  Be7 {[%clk 0:00:20]} 24. Rc1 {[%clk 0:01:27]}  c5 {[%clk 0:00:19]} 25. d4 {[%clk 0:01:27]}  b6 {[%clk 0:00:17]} 26. Qd3 {[%clk 0:01:22]}  Rfc8 {[%clk 0:00:16]} 27. g4 {[%clk 0:01:17]}  c4 {[%clk 0:00:16]} 28. Qg3 {[%clk 0:01:09]}  b5 {[%clk 0:00:15]} 29. f5 {[%clk 0:00:58]}  exf5 {[%clk 0:00:16]} 30. e6 {[%clk 0:00:58]}  Bxe6 {[%clk 0:00:14]} 31. Qe5+ {[%clk 0:00:54]}  Kf7 {[%clk 0:00:14]} 32. Rh1 {[%clk 0:00:54]}  Bf6 {[%clk 0:00:07]} 33. Rh7+ {[%clk 0:00:54]}  Kg8 {[%clk 0:00:08]} 34. Qxe6+ {[%clk 0:00:48]}  Kxh7 {[%clk 0:00:09]} 35. Qxf6 {[%clk 0:00:48]}  fxg4 {[%clk 0:00:08]} 36. Qf7+ {[%clk 0:00:47]}  Kh8 {[%clk 0:00:09]} 37. Bg5 {[%clk 0:00:46]} 1-0


[Site "https://www.chess.com"]

[Event "Titled Tuesday Blitz August 3 2021"]
[White "Kalashian, David"]
[Black "Briscoe, Chris"]
[WhiteFideId "13302418"]
[BlackFideId "408360"]
[WhiteElo "2490"]
[BlackElo "2111"]
[Result "1-0"]
[Round "06"]
[TimeControl "180+1"]
[Date "2021.08.03"]
[WhiteClock "0:01:38"]
[BlackClock "0:00:12"]

1. e4 {[%clk 0:02:59]}  c5 {[%clk 0:02:43]} 2. Nc3 {[%clk 0:02:59]}  Nc6 {[%clk 0:02:41]} 3. Nf3 {[%clk 0:02:59]}  e5 {[%clk 0:02:36]} 4. Bc4 {[%clk 0:02:59]}  Be7 {[%clk 0:02:36]} 5. d3 {[%clk 0:02:59]}  Nf6 {[%clk 0:02:35]} 6. Nd2 {[%clk 0:02:57]}  a6 {[%clk 0:02:34]} 7. a4 {[%clk 0:02:55]}  O-O {[%clk 0:02:25]} 8. Nf1 {[%clk 0:02:55]}  Nb4 {[%clk 0:02:03]} 9. Bg5 {[%clk 0:02:49]}  d5 {[%clk 0:01:54]} 10. Bxf6 {[%clk 0:02:42]}  dxc4 {[%clk 0:01:54]} 11. Bxe7 {[%clk 0:02:41]}  Qxe7 {[%clk 0:01:54]} 12. dxc4 {[%clk 0:02:41]}  Qg5 {[%clk 0:01:42]} 13. Ne3 {[%clk 0:02:40]}  Rd8 {[%clk 0:01:39]} 14. Ncd5 {[%clk 0:02:36]}  Nxd5 {[%clk 0:01:39]} 15. cxd5 {[%clk 0:02:32]}  f5 {[%clk 0:01:38]} 16. exf5 {[%clk 0:02:21]}  Bxf5 {[%clk 0:01:36]} 17. O-O {[%clk 0:02:19]}  Be4 {[%clk 0:01:32]} 18. c4 {[%clk 0:02:18]}  Rf8 {[%clk 0:01:25]} 19. Qg4 {[%clk 0:02:16]}  Qxg4 {[%clk 0:01:20]} 20. Nxg4 {[%clk 0:02:17]}  Bd3 {[%clk 0:01:19]} 21. Rfc1 {[%clk 0:02:16]}  e4 {[%clk 0:01:16]} 22. Ne5 {[%clk 0:02:13]}  Rae8 {[%clk 0:01:11]} 23. Ng4 {[%clk 0:02:05]}  h5 {[%clk 0:00:48]} 24. Ne3 {[%clk 0:02:05]}  h4 {[%clk 0:00:46]} 25. h3 {[%clk 0:02:03]}  Rf6 {[%clk 0:00:40]} 26. a5 {[%clk 0:02:00]}  b6 {[%clk 0:00:39]} 27. b3 {[%clk 0:01:50]}  Rb8 {[%clk 0:00:37]} 28. Rc3 {[%clk 0:01:46]}  Kf7 {[%clk 0:00:24]} 29. axb6 {[%clk 0:01:40]}  Rfxb6 {[%clk 0:00:23]} 30. Ra5 {[%clk 0:01:39]}  Rxb3 {[%clk 0:00:23]} 31. Rxb3 {[%clk 0:01:40]}  Rxb3 {[%clk 0:00:23]} 32. Rxc5 {[%clk 0:01:40]}  Ra3 {[%clk 0:00:19]} 33. Rc7+ {[%clk 0:01:39]}  Kf6 {[%clk 0:00:18]} 34. c5 {[%clk 0:01:39]}  a5 {[%clk 0:00:18]} 35. d6 {[%clk 0:01:39]}  Bb5 {[%clk 0:00:16]} 36. d7 {[%clk 0:01:38]}  Rd3 {[%clk 0:00:16]} 37. c6 {[%clk 0:01:37]}  a4 {[%clk 0:00:14]} 38. Rc8 {[%clk 0:01:37]}  a3 {[%clk 0:00:13]} 39. d8=Q+ {[%clk 0:01:37]}  Rxd8 {[%clk 0:00:12]} 40. Rxd8 {[%clk 0:01:38]}  Bxc6 {[%clk 0:00:12]} 1-0


[Site "https://www.chess.com"]

[Event "Titled Tuesday Blitz August 3 2021"]
[White "Kretov, Evgenij"]
[Black "Daulyte-Cornette, Deimante"]
[WhiteFideId "4167821"]
[BlackFideId "12802859"]
[WhiteElo "2400"]
[BlackElo "2285"]
[Result "1-0"]
[Round "06"]
[TimeControl "180+1"]
[Date "2021.08.03"]
[WhiteClock "0:01:15"]
[BlackClock "0:00:02"]

1. d4 {[%clk 0:03:00]}  d6 {[%clk 0:02:59]} 2. Nf3 {[%clk 0:03:00]}  Nf6 {[%clk 0:02:58]} 3. c4 {[%clk 0:02:58]}  g6 {[%clk 0:02:58]} 4. Nc3 {[%clk 0:02:59]}  Bf5 {[%clk 0:02:57]} 5. Qb3 {[%clk 0:02:55]}  Qc8 {[%clk 0:02:49]} 6. h3 {[%clk 0:02:53]}  Bg7 {[%clk 0:02:17]} 7. g4 {[%clk 0:02:53]}  Bd7 {[%clk 0:02:17]} 8. Bg2 {[%clk 0:02:52]}  c5 {[%clk 0:01:45]} 9. d5 {[%clk 0:02:41]}  a6 {[%clk 0:01:27]} 10. Bd2 {[%clk 0:02:34]}  O-O {[%clk 0:01:12]} 11. a4 {[%clk 0:02:33]}  e6 {[%clk 0:00:55]} 12. g5 {[%clk 0:02:31]}  Nh5 {[%clk 0:00:50]} 13. O-O-O {[%clk 0:02:18]}  b5 {[%clk 0:00:37]} 14. cxb5 {[%clk 0:02:13]}  axb5 {[%clk 0:00:36]} 15. Nxb5 {[%clk 0:02:13]}  Bxb5 {[%clk 0:00:30]} 16. Qxb5 {[%clk 0:02:13]}  exd5 {[%clk 0:00:26]} 17. Ne1 {[%clk 0:02:09]}  Qf5 {[%clk 0:00:17]} 18. Nd3 {[%clk 0:01:58]}  c4 {[%clk 0:00:17]} 19. Nb4 {[%clk 0:01:55]}  Qxf2 {[%clk 0:00:17]} 20. Bxd5 {[%clk 0:01:54]}  Ra7 {[%clk 0:00:15]} 21. Rhf1 {[%clk 0:01:50]}  Qd4 {[%clk 0:00:12]} 22. Bc3 {[%clk 0:01:50]}  Qe3+ {[%clk 0:00:12]} 23. Bd2 {[%clk 0:01:45]}  Qd4 {[%clk 0:00:12]} 24. Nc2 {[%clk 0:01:43]}  Qe5 {[%clk 0:00:09]} 25. Bxc4 {[%clk 0:01:38]}  Rxa4 {[%clk 0:00:09]} 26. Qxe5 {[%clk 0:01:32]}  Bxe5 {[%clk 0:00:06]} 27. b3 {[%clk 0:01:31]}  Ra2 {[%clk 0:00:06]} 28. Nb4 {[%clk 0:01:23]}  Ra7 {[%clk 0:00:04]} 29. Be3 {[%clk 0:01:20]}  Rb7 {[%clk 0:00:04]} 30. Nd5 {[%clk 0:01:19]}  Nc6 {[%clk 0:00:04]} 31. Kc2 {[%clk 0:01:19]}  Na5 {[%clk 0:00:04]} 32. Rb1 {[%clk 0:01:15]}  Rc8 {[%clk 0:00:03]} 33. Kd3 {[%clk 0:01:15]}  Nxc4 {[%clk 0:00:03]} 34. bxc4 {[%clk 0:01:15]}  Rxb1 {[%clk 0:00:02]} 35. Rxb1 {[%clk 0:01:15]}  Ng3 {[%clk 0:00:02]} 36. Ne7+ {[%clk 0:01:15]} 1-0


[Site "https://www.chess.com"]

[Event "Titled Tuesday Blitz August 3 2021"]
[White "Mekhitarian, Krikor Sevag"]
[Black "FGHSMN"]
[WhiteFideId "2107660"]
[WhiteElo "2598"]
[BlackElo "2511"]
[Result "0-1"]
[Round "06"]
[TimeControl "180+1"]
[Date "2021.08.03"]
[WhiteClock "0:00:02"]
[BlackClock "0:00:04"]

1. d4 {[%clk 0:03:00]}  Nf6 {[%clk 0:02:59]} 2. Bf4 {[%clk 0:02:57]}  e6 {[%clk 0:02:58]} 3. e3 {[%clk 0:02:57]}  c5 {[%clk 0:02:57]} 4. c3 {[%clk 0:02:56]}  Nc6 {[%clk 0:02:54]} 5. Nd2 {[%clk 0:02:54]}  Be7 {[%clk 0:02:54]} 6. h3 {[%clk 0:02:51]}  O-O {[%clk 0:02:52]} 7. Ngf3 {[%clk 0:02:50]}  b6 {[%clk 0:02:51]} 8. Bd3 {[%clk 0:02:49]}  Bb7 {[%clk 0:02:50]} 9. Qe2 {[%clk 0:02:44]}  d6 {[%clk 0:02:49]} 10. Bh2 {[%clk 0:02:41]}  Re8 {[%clk 0:02:34]} 11. a3 {[%clk 0:02:40]}  Rc8 {[%clk 0:02:33]} 12. O-O {[%clk 0:02:39]}  Bf8 {[%clk 0:02:30]} 13. Rad1 {[%clk 0:02:33]}  d5 {[%clk 0:02:12]} 14. Rfe1 {[%clk 0:02:17]}  Nd7 {[%clk 0:02:04]} 15. Bb1 {[%clk 0:02:03]}  e5 {[%clk 0:02:00]} 16. dxe5 {[%clk 0:01:55]}  Ndxe5 {[%clk 0:02:01]} 17. Nxe5 {[%clk 0:01:52]}  Nxe5 {[%clk 0:02:02]} 18. Bxh7+ {[%clk 0:01:26]}  Kxh7 {[%clk 0:01:58]} 19. Qh5+ {[%clk 0:01:27]}  Kg8 {[%clk 0:01:58]} 20. Bxe5 {[%clk 0:01:28]}  f6 {[%clk 0:01:46]} 21. Bg3 {[%clk 0:01:26]}  Qd7 {[%clk 0:01:32]} 22. c4 {[%clk 0:01:14]}  d4 {[%clk 0:01:26]} 23. Nf3 {[%clk 0:01:05]}  d3 {[%clk 0:01:16]} 24. Nd2 {[%clk 0:00:47]}  Rcd8 {[%clk 0:01:10]} 25. b3 {[%clk 0:00:45]}  f5 {[%clk 0:00:56]} 26. a4 {[%clk 0:00:42]}  Qc6 {[%clk 0:00:47]} 27. f3 {[%clk 0:00:37]}  g6 {[%clk 0:00:36]} 28. Qg5 {[%clk 0:00:32]}  Bg7 {[%clk 0:00:31]} 29. e4 {[%clk 0:00:29]}  fxe4 {[%clk 0:00:27]} 30. Nxe4 {[%clk 0:00:26]}  Bc8 {[%clk 0:00:20]} 31. Kh2 {[%clk 0:00:23]}  Bf5 {[%clk 0:00:20]} 32. Nf2 {[%clk 0:00:12]}  Kh7 {[%clk 0:00:16]} 33. Ng4 {[%clk 0:00:11]}  Rxe1 {[%clk 0:00:15]} 34. Rxe1 {[%clk 0:00:11]}  d2 {[%clk 0:00:12]} 35. Qxd8 {[%clk 0:00:10]}  dxe1=Q {[%clk 0:00:11]} 36. Bxe1 {[%clk 0:00:11]}  Bxg4 {[%clk 0:00:11]} 37. hxg4 {[%clk 0:00:09]}  Qe6 {[%clk 0:00:12]} 38. Bg3 {[%clk 0:00:08]}  Qe3 {[%clk 0:00:12]} 39. Qc7 {[%clk 0:00:06]}  Kh8 {[%clk 0:00:09]} 40. Qxa7 {[%clk 0:00:05]}  Qxb3 {[%clk 0:00:10]} 41. Qb8+ {[%clk 0:00:02]}  Kh7 {[%clk 0:00:10]} 42. Qc7 {[%clk 0:00:02]}  Kh8 {[%clk 0:00:10]} 43. Be5 {[%clk 0:00:02]}  Bxe5+ {[%clk 0:00:10]} 44. Qxe5+ {[%clk 0:00:03]}  Kh7 {[%clk 0:00:11]} 45. Qd5 {[%clk 0:00:03]}  Qxa4 {[%clk 0:00:10]} 46. Qb7+ {[%clk 0:00:03]}  Kh8 {[%clk 0:00:09]} 47. Qxb6 {[%clk 0:00:03]}  Qxc4 {[%clk 0:00:07]} 48. Qxg6 {[%clk 0:00:03]}  Qf4+ {[%clk 0:00:08]} 49. Kh3 {[%clk 0:00:03]}  c4 {[%clk 0:00:08]} 50. Qe8+ {[%clk 0:00:03]}  Kg7 {[%clk 0:00:08]} 51. Qd7+ {[%clk 0:00:03]}  Kh8 {[%clk 0:00:06]} 52. Qc8+ {[%clk 0:00:02]}  Kg7 {[%clk 0:00:06]} 53. Qd7+ {[%clk 0:00:01]}  Kh8 {[%clk 0:00:06]} 54. Qc6 {[%clk 0:00:02]}  Qd4 {[%clk 0:00:05]} 55. Kg3 {[%clk 0:00:02]}  c3 {[%clk 0:00:05]} 56. Qc8+ {[%clk 0:00:02]}  Kg7 {[%clk 0:00:05]} 57. Qc7+ {[%clk 0:00:02]}  Kf8 {[%clk 0:00:04]} 58. Qc8+ {[%clk 0:00:03]}  Ke7 {[%clk 0:00:05]} 59. Kh3 {[%clk 0:00:03]}  Qd2 {[%clk 0:00:03]} 60. Qc7+ {[%clk 0:00:03]}  Ke6 {[%clk 0:00:03]} 61. Qc6+ {[%clk 0:00:03]}  Ke5 {[%clk 0:00:04]} 62. f4+ {[%clk 0:00:02]}  Kxf4 {[%clk 0:00:03]} 63. Qf6+ {[%clk 0:00:02]}  Ke4 {[%clk 0:00:04]} 64. Qf5+ {[%clk 0:00:02]}  Kd4 {[%clk 0:00:04]} 65. Qd7+ {[%clk 0:00:02]}  Ke3 {[%clk 0:00:04]} 66. Qe6+ {[%clk 0:00:02]}  Kf2 {[%clk 0:00:04]} 67. Qf5+ {[%clk 0:00:02]}  Ke1 {[%clk 0:00:04]} 68. Qe4+ {[%clk 0:00:03]}  Qe2 {[%clk 0:00:04]} 69. Qb1+ {[%clk 0:00:03]}  Qd1 {[%clk 0:00:04]} 70. Qe4+ {[%clk 0:00:03]}  Kd2 {[%clk 0:00:04]} 71. g5 {[%clk 0:00:03]}  c2 {[%clk 0:00:04]} 72. Qd4+ {[%clk 0:00:03]}  Ke2 {[%clk 0:00:04]} 73. Qe4+ {[%clk 0:00:04]}  Kf1 {[%clk 0:00:05]} 74. Qf4+ {[%clk 0:00:04]}  Kg1 {[%clk 0:00:05]} 75. Qe3+ {[%clk 0:00:04]}  Kh1 {[%clk 0:00:04]} 76. g4 {[%clk 0:00:02]}  Qf1+ {[%clk 0:00:03]} 77. Kh4 {[%clk 0:00:02]}  c1=Q {[%clk 0:00:03]} 78. Qe4+ {[%clk 0:00:02]}  Qg2 {[%clk 0:00:03]} 79. Qe5 {[%clk 0:00:01]}  Qcg1 {[%clk 0:00:03]} 80. Kh5 {[%clk 0:00:01]}  Q1h2+ {[%clk 0:00:04]} 81. Kg6 {[%clk 0:00:02]}  Qxe5 {[%clk 0:00:04]} 0-1


[Site "https://www.chess.com"]

[Event "Titled Tuesday Blitz August 3 2021"]
[White "Mirzoev, Azer"]
[Black "Yoo, Christopher Woojin"]
[WhiteFideId "13400304"]
[BlackFideId "30909694"]
[WhiteElo "2525"]
[BlackElo "2105"]
[Result "1/2-1/2"]
[Round "06"]
[TimeControl "180+1"]
[Date "2021.08.03"]
[WhiteClock "0:00:18"]
[BlackClock "0:00:23"]

1. d4 {[%clk 0:02:58]}  Nf6 {[%clk 0:02:45]} 2. c4 {[%clk 0:02:58]}  e6 {[%clk 0:02:45]} 3. Nc3 {[%clk 0:02:58]}  d5 {[%clk 0:02:44]} 4. Bg5 {[%clk 0:02:52]}  Be7 {[%clk 0:02:38]} 5. e3 {[%clk 0:02:51]}  O-O {[%clk 0:02:36]} 6. Nf3 {[%clk 0:02:52]}  h6 {[%clk 0:02:37]} 7. Bh4 {[%clk 0:02:52]}  dxc4 {[%clk 0:02:30]} 8. Bxc4 {[%clk 0:02:51]}  c5 {[%clk 0:02:30]} 9. O-O {[%clk 0:02:51]}  cxd4 {[%clk 0:02:29]} 10. exd4 {[%clk 0:02:50]}  Nc6 {[%clk 0:02:29]} 11. a3 {[%clk 0:02:49]}  b6 {[%clk 0:02:14]} 12. Re1 {[%clk 0:02:45]}  Bb7 {[%clk 0:02:13]} 13. Qd3 {[%clk 0:02:45]}  Na5 {[%clk 0:02:08]} 14. Ba2 {[%clk 0:02:42]}  Nd5 {[%clk 0:02:04]} 15. Bxd5 {[%clk 0:02:11]}  Bxh4 {[%clk 0:02:00]} 16. Bxb7 {[%clk 0:02:10]}  Nxb7 {[%clk 0:01:59]} 17. Nxh4 {[%clk 0:02:08]}  Qxh4 {[%clk 0:01:59]} 18. Qf3 {[%clk 0:02:08]}  Nd6 {[%clk 0:01:55]} 19. d5 {[%clk 0:02:08]}  exd5 {[%clk 0:01:54]} 20. Nxd5 {[%clk 0:02:08]}  Rae8 {[%clk 0:01:53]} 21. g3 {[%clk 0:01:53]}  Qg5 {[%clk 0:01:38]} 22. Rad1 {[%clk 0:01:32]}  Rxe1+ {[%clk 0:01:32]} 23. Rxe1 {[%clk 0:01:32]}  Re8 {[%clk 0:01:32]} 24. Rxe8+ {[%clk 0:01:20]}  Nxe8 {[%clk 0:01:32]} 25. Kg2 {[%clk 0:01:16]}  Nd6 {[%clk 0:01:28]} 26. Ne3 {[%clk 0:01:12]}  Qe7 {[%clk 0:01:21]} 27. h4 {[%clk 0:01:04]}  g6 {[%clk 0:00:39]} 28. Qd5 {[%clk 0:00:57]}  Kg7 {[%clk 0:00:36]} 29. Nc4 {[%clk 0:00:38]}  Nxc4 {[%clk 0:00:31]} 30. Qxc4 {[%clk 0:00:38]}  Qe5 {[%clk 0:00:32]} 31. b4 {[%clk 0:00:25]}  g5 {[%clk 0:00:29]} 32. hxg5 {[%clk 0:00:25]}  hxg5 {[%clk 0:00:29]} 33. Qc6 {[%clk 0:00:24]}  g4 {[%clk 0:00:26]} 34. Qb7 {[%clk 0:00:23]}  a5 {[%clk 0:00:24]} 35. Qxb6 {[%clk 0:00:20]}  Qe4+ {[%clk 0:00:24]} 36. Kg1 {[%clk 0:00:20]}  Qb1+ {[%clk 0:00:23]} 37. Kg2 {[%clk 0:00:20]}  Qe4+ {[%clk 0:00:23]} 38. Kh2 {[%clk 0:00:18]}  Qh7+ {[%clk 0:00:23]} 39. Kg2 {[%clk 0:00:18]}  Qe4+ {[%clk 0:00:23]} 1/2-1/2


[Site "https://www.chess.com"]

[Event "Titled Tuesday Blitz August 3 2021"]
[White "Molina, Roberto Junio Brito"]
[Black "Svane, Rasmus"]
[WhiteFideId "2109450"]
[BlackFideId "4657101"]
[WhiteElo "2402"]
[BlackElo "2669"]
[Result "0-1"]
[Round "06"]
[TimeControl "180+1"]
[Date "2021.08.03"]
[WhiteClock "0:00:03"]
[BlackClock "0:00:48"]

1. d4 {[%clk 0:03:00]}  Nf6 {[%clk 0:03:00]} 2. c4 {[%clk 0:03:00]}  e6 {[%clk 0:03:01]} 3. Nf3 {[%clk 0:02:59]}  d5 {[%clk 0:03:01]} 4. Nc3 {[%clk 0:02:56]}  Be7 {[%clk 0:02:58]} 5. cxd5 {[%clk 0:02:55]}  exd5 {[%clk 0:02:59]} 6. Bg5 {[%clk 0:02:54]}  c6 {[%clk 0:03:00]} 7. e3 {[%clk 0:02:55]}  Bf5 {[%clk 0:02:59]} 8. Bd3 {[%clk 0:02:55]}  Bxd3 {[%clk 0:02:59]} 9. Qxd3 {[%clk 0:02:55]}  Nbd7 {[%clk 0:03:00]} 10. O-O {[%clk 0:02:55]}  O-O {[%clk 0:03:01]} 11. Rab1 {[%clk 0:02:51]}  a5 {[%clk 0:03:01]} 12. Nd2 {[%clk 0:02:45]}  Re8 {[%clk 0:03:00]} 13. Bh4 {[%clk 0:02:43]}  Nb6 {[%clk 0:02:48]} 14. b3 {[%clk 0:02:40]}  Nh5 {[%clk 0:02:46]} 15. Bxe7 {[%clk 0:02:39]}  Qxe7 {[%clk 0:02:47]} 16. Na4 {[%clk 0:02:27]}  Nd7 {[%clk 0:02:40]} 17. Rbc1 {[%clk 0:02:25]}  Nhf6 {[%clk 0:02:40]} 18. Nc5 {[%clk 0:02:23]}  Nxc5 {[%clk 0:02:41]} 19. Rxc5 {[%clk 0:02:22]}  Nd7 {[%clk 0:02:37]} 20. Rc2 {[%clk 0:02:22]}  Nb6 {[%clk 0:02:37]} 21. g3 {[%clk 0:02:20]}  g6 {[%clk 0:02:35]} 22. Rb1 {[%clk 0:02:17]}  Nc8 {[%clk 0:02:33]} 23. Kg2 {[%clk 0:02:11]}  Nd6 {[%clk 0:02:33]} 24. h4 {[%clk 0:02:06]}  Kg7 {[%clk 0:02:25]} 25. Rbc1 {[%clk 0:02:05]}  a4 {[%clk 0:02:18]} 26. Rb2 {[%clk 0:02:01]}  axb3 {[%clk 0:02:18]} 27. Qxb3 {[%clk 0:01:48]}  Ra7 {[%clk 0:02:16]} 28. Qb4 {[%clk 0:01:44]}  Rea8 {[%clk 0:02:15]} 29. Rcc2 {[%clk 0:01:42]}  Qe6 {[%clk 0:02:10]} 30. Qc3 {[%clk 0:01:36]}  Ra3 {[%clk 0:02:05]} 31. Qb4 {[%clk 0:01:35]}  R8a4 {[%clk 0:02:03]} 32. Qb6 {[%clk 0:01:34]}  Ra8 {[%clk 0:01:52]} 33. Qb4 {[%clk 0:01:32]}  R3a4 {[%clk 0:01:52]} 34. Qc3 {[%clk 0:01:30]}  h6 {[%clk 0:01:50]} 35. Qd3 {[%clk 0:01:29]}  Qg4 {[%clk 0:01:47]} 36. Nf3 {[%clk 0:01:15]}  Ra3 {[%clk 0:01:40]} 37. Qe2 {[%clk 0:01:12]}  Qc8 {[%clk 0:01:31]} 38. Ne5 {[%clk 0:01:06]}  R8a7 {[%clk 0:01:32]} 39. h5 {[%clk 0:00:46]}  g5 {[%clk 0:01:31]} 40. Rb1 {[%clk 0:00:40]}  Qe6 {[%clk 0:01:26]} 41. Rbb2 {[%clk 0:00:34]}  Nb5 {[%clk 0:01:25]} 42. Kg1 {[%clk 0:00:26]}  Qf5 {[%clk 0:01:24]} 43. Rd2 {[%clk 0:00:24]}  Nc3 {[%clk 0:01:22]} 44. Qf3 {[%clk 0:00:21]}  Qxf3 {[%clk 0:01:21]} 45. Nxf3 {[%clk 0:00:22]}  Rxa2 {[%clk 0:01:22]} 46. Ne5 {[%clk 0:00:21]}  f6 {[%clk 0:01:15]} 47. Nd3 {[%clk 0:00:20]}  Rxb2 {[%clk 0:01:04]} 48. Rxb2 {[%clk 0:00:21]}  Ne4 {[%clk 0:01:04]} 49. Kg2 {[%clk 0:00:18]}  Kf7 {[%clk 0:01:04]} 50. f3 {[%clk 0:00:16]}  Nd6 {[%clk 0:01:04]} 51. Nc5 {[%clk 0:00:12]}  Ke7 {[%clk 0:00:59]} 52. e4 {[%clk 0:00:10]}  dxe4 {[%clk 0:00:56]} 53. fxe4 {[%clk 0:00:11]}  b5 {[%clk 0:00:55]} 54. d5 {[%clk 0:00:05]}  Nc4 {[%clk 0:00:50]} 55. Rb4 {[%clk 0:00:03]}  Kd6 {[%clk 0:00:48]} 0-1


[Site "https://www.chess.com"]

[Event "Titled Tuesday Blitz August 3 2021"]
[White "Najdin, Danil"]
[Black "Srihari L R"]
[WhiteFideId "4172426"]
[BlackFideId "46617116"]
[WhiteElo "2193"]
[BlackElo "2121"]
[Result "0-1"]
[Round "06"]
[TimeControl "180+1"]
[Date "2021.08.03"]
[WhiteClock "0:00:13"]
[BlackClock "0:00:20"]

1. e4 {[%clk 0:03:00]}  d6 {[%clk 0:02:58]} 2. d4 {[%clk 0:02:42]}  Nf6 {[%clk 0:02:52]} 3. Nc3 {[%clk 0:02:42]}  e5 {[%clk 0:02:52]} 4. Nf3 {[%clk 0:02:41]}  exd4 {[%clk 0:02:44]} 5. Nxd4 {[%clk 0:02:41]}  Be7 {[%clk 0:02:45]} 6. Bc4 {[%clk 0:02:41]}  O-O {[%clk 0:02:45]} 7. O-O {[%clk 0:02:41]}  Nc6 {[%clk 0:02:45]} 8. Nxc6 {[%clk 0:02:38]}  bxc6 {[%clk 0:02:46]} 9. f4 {[%clk 0:02:23]}  Be6 {[%clk 0:02:44]} 10. Bb3 {[%clk 0:02:16]}  Bxb3 {[%clk 0:02:32]} 11. axb3 {[%clk 0:02:16]}  d5 {[%clk 0:02:32]} 12. e5 {[%clk 0:02:13]}  Nd7 {[%clk 0:02:31]} 13. Be3 {[%clk 0:02:09]}  f5 {[%clk 0:02:29]} 14. Rxa7 {[%clk 0:02:00]}  Rxa7 {[%clk 0:02:23]} 15. Bxa7 {[%clk 0:02:01]}  Qa8 {[%clk 0:02:20]} 16. Be3 {[%clk 0:01:54]}  Bc5 {[%clk 0:02:20]} 17. Bxc5 {[%clk 0:01:48]}  Nxc5 {[%clk 0:02:21]} 18. Qa1 {[%clk 0:01:48]}  Qb7 {[%clk 0:02:18]} 19. Qa5 {[%clk 0:01:40]}  Ne6 {[%clk 0:02:18]} 20. Na4 {[%clk 0:01:29]}  Ra8 {[%clk 0:02:07]} 21. Qc3 {[%clk 0:01:29]}  Qb5 {[%clk 0:01:55]} 22. h3 {[%clk 0:01:23]}  Rf8 {[%clk 0:01:45]} 23. Rf2 {[%clk 0:01:16]}  c5 {[%clk 0:01:34]} 24. Qf3 {[%clk 0:01:05]}  c6 {[%clk 0:01:31]} 25. Kh2 {[%clk 0:01:01]}  Qb4 {[%clk 0:01:27]} 26. Nc3 {[%clk 0:00:59]}  Ra8 {[%clk 0:01:18]} 27. Rf1 {[%clk 0:00:59]}  g6 {[%clk 0:01:14]} 28. g4 {[%clk 0:00:56]}  Rf8 {[%clk 0:01:04]} 29. Nxd5 {[%clk 0:00:51]}  cxd5 {[%clk 0:00:59]} 30. Qxd5 {[%clk 0:00:52]}  Qb6 {[%clk 0:00:58]} 31. gxf5 {[%clk 0:00:42]}  Rxf5 {[%clk 0:00:57]} 32. Ra1 {[%clk 0:00:42]}  Kg7 {[%clk 0:00:50]} 33. Ra8 {[%clk 0:00:39]}  Nxf4 {[%clk 0:00:46]} 34. Rg8+ {[%clk 0:00:29]}  Kh6 {[%clk 0:00:43]} 35. Qd7 {[%clk 0:00:27]}  Qe6 {[%clk 0:00:22]} 36. Qg7+ {[%clk 0:00:23]}  Kg5 {[%clk 0:00:22]} 37. Qxh7 {[%clk 0:00:23]}  Qxe5 {[%clk 0:00:21]} 38. h4+ {[%clk 0:00:18]}  Kg4 {[%clk 0:00:21]} 39. Rxg6+ {[%clk 0:00:13]}  Nxg6+ {[%clk 0:00:20]} 0-1


[Site "https://www.chess.com"]